bitfinex/quotes_ETHUSD_20250217
["timestamp","ask_amount","ask_price","bid_price","bid_amount"]
[1739756088709,0.005,2673.4,2673.3,0.29497371]
[1739756089776,0.005,2673.4,2673.3,3.74069]
[1739756089981,0.005,2673.4,2673.2,3.74074]
[1739756090612,0.005,2673.4,2672.9,3.22136682]
[1739756090813,0.005,2673.4,2672.8,3.7413]
[1739756090968,0.005,2673.4,2673.0,7.48202]
[1739756091315,0.005,2673.4,2673.1,3.74097]
[1739756091664,0.005,2673.4,2673.2,3.74082]
[1739756092302,0.005,2673.4,2673.3,3.74069]
[1739756092614,0.005,2673.4,2673.1,3.74097]
[1739756093329,0.005,2673.4,2673.1,7.48175]
[1739756093483,0.005,2673.4,2673.2,3.74078]
[1739756094911,0.005,2673.4,2673.1,3.74096]
[1739756096449,0.005,2673.4,2673.2,3.7408]
[1739756096666,0.23202778,2673.3,2673.2,3.7408]
[1739756096850,0.23202778,2673.3,2673.2,4.488979]
[1739756097224,0.005,2673.4,2673.3,3.74069]
[1739756099353,0.005,2673.4,2673.2,7.71029582]
[1739756100364,0.005,2673.4,2673.2,4.488929]
[1739756100525,0.005,2673.4,2673.2,0.748179]
[1739756101220,0.005,2673.4,2673.2,4.488969]
[1739756101436,0.005,2673.4,2673.3,0.8229859]
[1739756102468,0.005,2673.4,2673.3,4.5636759]
[1739756103159,0.005,2673.4,2673.3,5.3623759]
[1739756103317,0.005,2673.4,2673.3,8.39977729]
[1739756103518,0.005,2673.4,2673.3,8.3623759]
[1739756103747,0.1479512,2674.3,2674.1,7.47905]
[1739756103937,0.1479512,2674.3,2674.2,3.73943]
[1739756104120,0.23202778,2674.2,2674.1,6.96083682]
[1739756104353,0.1479512,2674.3,2674.1,6.96083682]
[1739756104550,0.1479512,2674.3,2674.2,3.73943]
[1739756104860,0.0979512,2674.3,2674.1,6.96092682]
[1739756105158,0.0979512,2674.3,2673.9,4.53845]
[1739756106121,3.8372412,2674.3,2673.8,3.22136682]
[1739756106551,3.8372412,2674.3,2673.7,8.27881]
[1739756106765,3.8372412,2674.3,2673.7,5.61545242]
[1739756107064,3.73948,2674.2,2673.7,3.74005]
[1739756107655,3.73983,2674.0,2673.3,4.5635759]
[1739756107858,3.74004,2673.8,2673.2,3.74074]
[1739756108061,3.74016,2673.7,2673.1,3.74087]
[1739756108254,3.74057,2673.4,2672.9,0.4546]
[1739756108470,3.74057,2673.4,2673.3,0.29412469]
[1739756109346,4.488669,2673.4,2673.3,0.29412469]
[1739756110454,3.74042,2673.5,2673.3,0.29412469]
[1739756110768,3.74055,2673.4,2672.9,3.74114]
[1739756110974,3.74055,2673.4,2672.7,3.74141]
[1739756111172,3.74042,2673.5,2672.9,3.74121]
[1739756111376,3.74058,2673.4,2672.7,7.48282]
[1739756111548,3.74081,2673.3,2672.8,1.048282]
[1739756112190,0.23288726,2673.2,2672.8,1.048282]
[1739756112681,0.75814085,2673.7,2672.5,3.74173]
[1739756112682,7.48214,2673.1,2672.5,3.74173]
[1739756112836,7.71502726,2673.1,2672.5,3.74173]
[1739756113345,0.23288726,2673.1,2672.7,3.74152]
[1739756113550,3.97389726,2673.1,2672.5,3.74173]
[1739756113731,3.74101,2673.1,2672.5,4.115903]
[1739756113931,0.23261488,2673.0,2672.5,4.115903]
[1739756114132,3.97373488,2673.0,2672.5,4.115903]
[1739756114468,3.74165,2672.7,2672.2,0.7889]
[1739756114629,3.74142,2672.8,2672.2,4.53108]
[1739756114943,0.23249379,2672.7,2672.2,0.7889]
[1739756115149,0.23249379,2672.7,2672.3,3.74208]
[1739756115353,3.74154,2672.7,2672.2,4.53113]
[1739756115581,0.23249379,2672.6,2672.2,5.358471]
[1739756115982,3.74146,2672.8,2672.2,5.358471]
[1739756116276,0.23249379,2672.5,2672.3,3.74207]
[1739756116449,3.74148,2672.8,2672.3,3.74207]
[1739756116650,0.23249379,2672.4,2672.2,1.616241]
[1739756116851,3.74154,2672.7,2672.2,1.616241]
[1739756117062,0.23249379,2672.3,2672.2,5.358451]
[1739756117262,3.74134,2672.9,2672.3,3.74197]
[1739756117464,3.7409,2673.2,2672.3,0.4569311]
[1739756117668,3.74105,2673.1,2672.4,0.7988]
[1739756117876,3.74105,2673.1,2672.5,3.74172]
[1739756118276,7.48215,2673.1,2672.5,3.74172]
[1739756118592,0.27,2673.2,2672.5,3.74172]
[1739756118800,0.27,2673.2,2672.7,3.74147]
[1739756119097,3.74049,2673.5,2672.9,3.74118]
[1739756119242,3.74063,2673.4,2672.9,4.53998]
[1739756119798,3.74078,2673.3,2672.9,0.7988]
[1739756120593,7.48156,2673.3,2672.9,0.7988]
[1739756120892,3.74048,2673.5,2672.9,4.54004]
[1739756121077,3.74048,2673.5,2673.0,0.454004]
[1739756121078,3.74057,2673.4,2673.0,0.454004]
[1739756122071,3.74048,2673.5,2673.0,0.454004]
[1739756122278,3.74048,2673.5,2672.9,4.53997]
[1739756123360,3.74056,2673.4,2672.9,4.53997]
[1739756123542,0.73581576,2673.7,2672.9,4.53997]
[1739756123543,4.01023,2673.7,2673.1,3.74095]
[1739756123749,7.75047,2673.7,2673.1,3.74095]
[1739756123981,3.74036,2673.6,2673.1,3.74095]
[1739756124191,3.74036,2673.6,2673.2,0.374095]
[1739756125483,3.74023,2673.7,2673.2,0.374095]
[1739756125687,3.74028,2673.6,2673.2,0.374095]
[1739756126274,4.00995,2673.9,2673.3,0.8247]
[1739756126588,4.00995,2673.9,2673.3,4.56529]
[1739756126589,3.74002,2673.8,2673.3,4.56529]
[1739756126794,0.23191879,2673.5,2673.4,0.4939385]
[1739756127097,3.8373412,2674.3,2673.7,0.8247]
[1739756127267,3.73954,2674.2,2673.7,4.56473]
[1739756127586,3.73954,2674.2,2673.7,5.695236]
[1739756128095,3.73954,2674.2,2673.7,9.435276]
[1739756128393,3.73954,2674.2,2673.7,9.435266]
[1739756128682,0.0979512,2674.3,2673.8,3.73992]
[1739756128981,3.8372512,2674.3,2673.8,3.73992]
[1739756129187,0.0979512,2674.3,2673.9,3.73978]
[1739756129515,0.0979512,2674.3,2673.9,4.68702112]
[1739756129694,0.0979512,2674.3,2674.0,3.73971]
[1739756130142,0.0979512,2674.3,2673.9,4.68702112]
[1739756130499,0.0979512,2674.3,2674.0,3.7397]
[1739756130799,0.0979512,2674.3,2674.1,3.73956]
[1739756130990,0.0979512,2674.3,2674.2,0.8247]
[1739756132488,0.0979512,2674.3,2674.1,4.20824011]
[1739756132489,0.0979512,2674.3,2674.1,0.46868011]
[1739756132691,0.0979512,2674.3,2673.9,5.51172112]
[1739756132857,0.0979512,2674.3,2673.9,9.25149112]
[1739756133158,0.0979512,2674.3,2673.9,5.51171112]
[1739756133574,0.0979512,2674.3,2673.9,9.25149112]
[1739756133773,0.0979512,2674.3,2673.9,5.51171112]
[1739756133985,0.0979512,2674.3,2674.0,0.55117111]
[1739756135159,0.0979512,2674.3,2674.0,4.29088111]
[1739756135360,0.0979512,2674.3,2674.1,3.73949]
[1739756135612,0.3093766,2674.2,2674.1,3.73949]
[1739756135909,0.0979512,2674.3,2674.0,4.29088111]
[1739756136106,0.3093766,2674.2,2674.0,4.29088111]
[1739756136277,0.0979512,2674.3,2674.1,0.51155811]
[1739756136477,0.3093766,2674.2,2674.1,0.51155811]
[1739756136677,0.0979512,2674.3,2674.1,0.51155811]
[1739756136882,0.3093766,2674.2,2674.1,0.51155811]
[1739756137198,0.0979512,2674.3,2674.1,0.51155811]
[1739756137378,0.3093766,2674.2,2674.1,0.51155811]
[1739756137796,0.0979512,2674.3,2674.1,0.51155811]
[1739756137994,0.3093766,2674.2,2674.1,0.51155811]
[1739756138406,0.0979512,2674.3,2674.1,0.51155811]
[1739756138710,0.3093766,2674.2,2674.1,0.51155811]
[1739756138912,0.0979512,2674.3,2674.1,0.51155811]
[1739756139073,0.3093766,2674.2,2674.1,0.51155811]
[1739756139273,0.0979512,2674.3,2674.1,0.51155811]
[1739756139474,0.3093766,2674.2,2674.1,0.51155811]
[1739756139774,0.0979512,2674.3,2674.1,0.51155811]
[1739756140111,0.3093766,2674.2,2674.1,0.51155811]
[1739756140318,0.0979512,2674.3,2674.1,0.51155811]
[1739756140484,0.0979512,2674.3,2674.2,4.16455681]
[1739756140668,0.0979512,2674.3,2674.2,4.92935681]
[1739756141069,0.4073278,2674.3,2674.2,4.92935681]
[1739756141484,0.0979512,2674.3,2674.2,4.92935681]
[1739756141682,0.40744277,2674.3,2674.2,4.92935681]
[1739756142211,0.40744277,2674.3,2674.2,4.96674575]
[1739756142414,0.40744277,2674.3,2674.2,4.92935681]
[1739756142619,0.0979512,2674.3,2674.2,4.92935681]
[1739756143276,0.0979512,2674.3,2674.2,5.51674192]
[1739756143478,0.0979512,2674.3,2674.2,8.51674192]
[1739756143689,0.0979512,2674.3,2674.2,8.47935681]
[1739756144685,0.0979,2675.7,2674.2,12.84512681]
[1739756144989,0.30949157,2675.6,2675.2,3.73795]
[1739756145199,0.30949157,2675.6,2675.2,7.47589]
[1739756145416,0.30949157,2675.6,2675.2,3.73794]
[1739756145619,0.30949157,2675.6,2675.2,4.56245]
[1739756146213,4.04699157,2675.6,2675.2,0.82451]
[1739756146387,0.30949157,2675.6,2675.2,0.82451]
[1739756146582,0.30949157,2675.6,2675.3,3.73781]
[1739756147028,0.30949157,2675.6,2675.2,3.73793]
[1739756147411,0.30949157,2675.6,2675.4,3.73763]
[1739756147614,0.30949157,2675.6,2675.5,3.73761]
[1739756147940,0.0979,2676.2,2675.8,3.73718]
[1739756148141,0.31169905,2676.1,2675.6,3.73743]
[1739756148313,0.31169905,2676.1,2675.6,3.73739]
[1739756148722,0.31169905,2676.1,2675.6,7.47478]
[1739756149044,0.31169905,2676.1,2675.7,3.73724]
[1739756149346,0.31169905,2676.1,2675.8,3.7371]
[1739756149718,0.31169905,2676.1,2675.9,3.737]
[1739756150134,0.31169905,2676.1,2675.7,3.73724]
[1739756150934,0.31169905,2676.1,2675.6,4.561828]
[1739756150935,4.04854905,2676.1,2675.6,4.561828]
[1739756152557,0.31169905,2676.1,2675.7,3.73733]
[1739756153042,0.31169905,2676.1,2675.7,3.73724]
[1739756153408,0.31169905,2676.1,2675.6,0.824368]
[1739756153654,0.31169905,2676.1,2675.7,3.73733]
[1739756154352,0.31169905,2676.1,2675.7,7.47458]
[1739756154547,0.31169905,2676.1,2675.8,3.73718]
[1739756155956,0.31169905,2676.1,2676.0,4.52692]
[1739756156157,0.74778801,2676.7,2675.8,3.73717]
[1739756156461,3.73671,2676.2,2675.7,3.73733]
[1739756156629,0.0979,2676.3,2676.0,3.7369]
[1739756156949,0.31197701,2676.2,2676.1,11.81356]
[1739756157120,0.1479512,2677.0,2676.9,4.52566]
[1739756157327,0.44900374,2677.0,2676.9,4.52566]
[1739756158255,0.1479512,2677.0,2676.9,5.351806]
[1739756158758,0.44900374,2677.0,2676.9,5.351806]
[1739756160579,0.1479512,2677.0,2676.9,5.351806]
[1739756160902,0.1479512,2677.0,2676.9,11.57317282]
[1739756161071,0.1479512,2677.0,2676.9,12.12317282]
[1739756165985,0.1479512,2677.0,2676.9,11.57317282]
[1739756166141,0.1479512,2677.0,2676.9,4.561806]
[1739756166340,0.4505919,2677.0,2676.9,4.561806]
[1739756167199,0.4505919,2677.0,2676.7,3.73583]
[1739756167362,0.5484919,2677.0,2676.6,3.73608]
[1739756167978,0.2458512,2677.0,2676.6,3.73608]
[1739756168173,0.2458512,2677.0,2676.6,3.73594]
[1739756168380,0.30244152,2676.9,2676.7,3.73581]
[1739756168969,0.30244152,2676.9,2676.6,4.188534]
[1739756169164,0.30244152,2676.9,2676.6,0.452594]
[1739756169362,0.30244152,2676.9,2676.1,7.74805682]
[1739756169563,3.73601,2676.7,2676.1,3.73669]
[1739756169900,0.30236908,2676.6,2675.9,0.79]
[1739756170082,0.0979,2676.5,2676.1,3.7367]
[1739756170395,0.30223626,2676.4,2676.1,7.47337]
[1739756170599,0.30223626,2676.4,2676.3,3.7365]
[1739756171025,0.0979,2676.9,2676.3,3.7365]
[1739756171182,0.1479512,2677.0,2676.8,3.7358]
[1739756171522,0.1479512,2677.0,2676.6,3.73598]
[1739756171694,0.30216985,2676.9,2676.6,3.73598]
[1739756172024,0.30216985,2676.9,2676.4,4.52287]
[1739756172320,0.30216985,2676.9,2676.7,3.73585]
[1739756172498,0.30216985,2676.9,2676.6,3.73596]
[1739756173093,4.03790985,2676.9,2676.5,0.452287]
[1739756173281,0.0979,2676.7,2676.1,3.73671]
[1739756173481,3.73617,2676.6,2676.1,3.73671]
[1739756173687,4.03847268,2676.6,2675.9,3.73698]
[1739756173998,3.73639,2676.4,2675.9,3.73698]
[1739756174196,3.73624,2676.5,2675.9,3.73697]
[1739756174525,0.30216985,2676.3,2676.0,0.673697]
[1739756174827,0.30216985,2676.2,2676.0,0.673697]
[1739756175186,3.73624,2676.5,2676.0,3.673697]
[1739756175502,0.30216985,2676.4,2676.0,3.673697]
[1739756175710,0.30216985,2676.4,2676.0,7.410537]
[1739756175911,0.30216985,2676.4,2676.1,1.1147467]
[1739756176084,3.73617,2676.6,2676.1,1.1147467]
[1739756176424,0.0979,2676.7,2676.2,3.77392226]
[1739756176595,0.30206719,2676.5,2676.2,3.73656]
[1739756176923,3.83385,2676.7,2676.2,0.89741843]
[1739756177083,0.30206719,2676.4,2676.2,0.89741843]
[1739756177284,3.73626,2676.5,2676.2,0.89741843]
[1739756177625,0.0979,2676.7,2676.2,4.63405843]
[1739756177852,0.30206719,2676.4,2676.3,3.73649]
[1739756178059,3.83395,2676.7,2676.2,0.89741843]
[1739756178319,0.30206719,2676.4,2676.2,0.89741843]
[1739756178574,0.0979,2676.7,2676.3,0.50076911]
[1739756178777,0.0979,2676.7,2676.3,4.19982884]
[1739756178960,0.0979,2676.7,2676.3,0.46340884]
[1739756179466,3.83385,2676.7,2676.3,0.46340884]
[1739756180772,3.73609,2676.6,2676.3,0.46340884]
[1739756180960,3.73609,2676.6,2676.1,3.73669]
[1739756181174,7.4723,2676.6,2676.1,3.73669]
[1739756181479,0.0979,2676.7,2676.1,3.73669]
[1739756181682,0.0979,2676.7,2676.3,3.73648]
[1739756182491,0.0979,2676.9,2676.2,0.7866]
[1739756182655,0.0979,2676.9,2676.5,3.73615]
[1739756182855,3.83367,2676.9,2676.3,3.73637]
[1739756183362,3.83367,2676.9,2676.4,3.73634]
[1739756183556,0.0979,2676.9,2676.3,3.73637]
[1739756183783,0.0979,2676.9,2676.6,3.73604]
[1739756184085,3.8835412,2677.0,2676.7,0.373604]
[1739756184255,3.7361,2676.6,2676.2,0.37866]
[1739756184803,3.73589,2676.8,2676.2,0.37866]
[1739756184944,3.73589,2676.8,2676.2,3.73656]
[1739756185144,3.73609,2676.6,2676.2,0.27724292]
[1739756185579,3.73587,2676.8,2676.2,4.01374292]
[1739756185986,3.73587,2676.8,2676.3,3.73646]
[1739756186145,3.73587,2676.8,2676.4,3.73634]
[1739756186346,0.0979,2676.9,2676.4,8.24762829]
[1739756186646,0.30190419,2676.8,2676.4,4.51128829]
[1739756187691,4.03771419,2676.8,2676.4,4.51128829]
[1739756188493,4.03771419,2676.8,2676.5,0.27724292]
[1739756188689,0.30190419,2676.8,2676.5,0.27724292]
[1739756189764,4.03771419,2676.8,2676.5,0.27724292]
[1739756190092,4.03771419,2676.8,2676.4,4.51128829]
[1739756190277,4.03771419,2676.8,2676.4,0.77500829]
[1739756190462,7.77362419,2676.8,2676.4,0.77500829]
[1739756190663,3.73595,2676.7,2676.2,3.73662]
[1739756190904,0.30190419,2676.8,2676.0,0.7866]
[1739756191080,3.83363,2676.9,2676.4,3.73624]
[1739756191253,3.83363,2676.9,2676.0,3.7866]
[1739756191449,3.73606,2676.7,2676.3,0.27750295]
[1739756191679,3.73606,2676.7,2676.3,4.01398295]
[1739756191876,0.30205515,2676.6,2676.3,0.27750295]
[1739756192082,0.30205515,2676.6,2676.3,4.01397295]
[1739756192281,0.30205515,2676.6,2676.3,4.78904725]
[1739756192899,3.73622,2676.5,2676.4,0.27750295]
[1739756193352,4.03827515,2676.5,2676.4,0.27750295]
[1739756194170,4.03827515,2676.5,2676.2,0.27750295]
[1739756194691,0.30205515,2676.5,2676.2,0.27750295]
[1739756195267,0.30205515,2676.5,2676.1,3.73677]
[1739756195268,0.30205515,2676.5,2676.3,0.27750295]
[1739756195688,4.03840515,2676.5,2676.3,0.27750295]
[1739756195870,0.30205515,2676.5,2676.3,0.27750295]
[1739756197193,0.30205515,2676.5,2676.4,0.27750295]
[1739756197696,4.03827515,2676.5,2676.4,0.27750295]
[1739756198200,4.13617515,2676.5,2676.4,0.27750295]
[1739756199196,4.13617515,2676.5,2676.0,3.73691]
[1739756199395,4.13620515,2676.5,2676.1,0.373691]
[1739756199754,4.13620515,2676.5,2676.4,0.27840012]
[1739756200393,0.30205515,2676.5,2676.4,0.27840012]
[1739756200602,4.03827515,2676.5,2676.4,0.27840012]
[1739756201226,0.30205515,2676.5,2676.4,0.27840012]
[1739756201425,4.03827515,2676.5,2676.4,0.27840012]
[1739756201627,0.30205515,2676.5,2676.4,0.27840012]
[1739756202548,4.03827515,2676.5,2676.4,0.27840012]
[1739756202903,0.30205515,2676.5,2676.4,0.27840012]
[1739756204454,0.30205515,2676.5,2676.4,1.07590012]
[1739756204755,0.30205515,2676.5,2676.4,4.81226012]
[1739756204987,4.2524912,2677.0,2676.5,3.73622]
[1739756205283,0.1479512,2677.0,2676.6,3.73598]
[1739756205414,0.3019042,2676.9,2676.7,3.73587]
[1739756205612,0.3019042,2676.9,2676.7,7.47174]
[1739756206030,0.3019042,2676.9,2676.8,3.7358]
[1739756206224,0.3019042,2676.9,2676.8,0.77500701]
[1739756206446,0.3019042,2676.9,2676.8,4.51080701]
[1739756207358,0.3019042,2676.9,2676.8,8.30830701]
[1739756207742,0.1479512,2677.0,2676.9,4.53316]
[1739756207920,0.1479512,2677.0,2676.9,5.08316]
[1739756208260,0.1479512,2677.0,2676.9,5.58915011]
[1739756209690,0.1479512,2677.0,2676.9,5.86755023]
[1739756210945,0.1479512,2677.0,2676.9,5.90489843]
[1739756211182,0.1479512,2677.0,2676.9,5.86755023]
[1739756211567,0.45045912,2677.0,2676.9,5.86755023]
[1739756211999,0.1479512,2677.0,2676.9,5.86755023]
[1739756212303,0.45045912,2677.0,2676.9,5.86755023]
[1739756212514,0.1479512,2677.0,2676.9,5.86755023]
[1739756212684,0.45045912,2677.0,2676.9,5.86755023]
[1739756213200,0.45045912,2677.0,2676.9,2.13189023]
[1739756213201,0.1479512,2677.0,2676.9,2.13189023]
[1739756213560,0.45056172,2677.0,2676.9,2.13189023]
[1739756213762,0.45056172,2677.0,2676.9,5.86755023]
[1739756214468,0.1479512,2677.0,2676.9,5.90489818]
[1739756214869,0.1479512,2677.0,2676.9,5.86755023]
[1739756215206,0.45056172,2677.0,2676.9,5.86755023]
[1739756215516,0.1479512,2677.0,2676.9,5.86755023]
[1739756215714,0.1479512,2677.0,2676.9,5.90489671]
[1739756215856,0.1479512,2677.0,2676.9,6.45489671]
[1739756216065,0.1479512,2677.0,2676.9,6.41755023]
[1739756219155,0.1479512,2677.0,2676.9,5.07005023]
[1739756220368,0.4508575,2677.0,2676.9,5.07005023]
[1739756220859,0.4508575,2677.0,2676.9,1.33439023]
[1739756221163,4.2842775,2677.0,2676.9,0.27840012]
[1739756221362,0.5487575,2677.0,2676.9,0.27840012]
[1739756221749,0.4508575,2677.0,2676.9,0.27840012]
[1739756221952,0.4508575,2677.0,2676.9,3.73566]
[1739756222148,0.4508575,2677.0,2676.9,4.564083]
[1739756222350,0.1479512,2677.0,2676.9,4.60143158]
[1739756222552,0.1479512,2677.0,2676.9,4.564083]
[1739756222739,0.1479512,2677.0,2676.9,5.114083]
[1739756222939,0.1479512,2677.0,2676.9,8.926883]
[1739756224160,0.1479512,2677.0,2676.9,9.2039807]
[1739756224543,0.1479512,2677.0,2676.9,0.2770977]
[1739756224738,0.1479512,2677.0,2676.9,4.8255577]
[1739756225369,0.1479512,2677.0,2676.9,7.86290423]
[1739756225574,0.1479512,2677.0,2676.9,7.8255577]
[1739756226986,0.1479512,2677.0,2676.9,0.2770977]
[1739756227145,0.1479512,2677.0,2676.9,4.0127577]
[1739756227344,0.45113506,2677.0,2676.9,4.0127577]
[1739756227844,0.45113506,2677.0,2676.9,0.2770977]
[1739756230247,0.45113506,2677.0,2676.8,3.73577]
[1739756230595,0.45113506,2677.0,2676.9,3.73566]
[1739756231085,0.45113506,2677.0,2676.7,0.2770977]
[1739756231527,4.18678506,2677.0,2676.9,0.2770977]
[1739756231730,4.28468506,2677.0,2676.9,0.2770977]
[1739756231882,1.35104257,2677.0,2676.9,0.2770977]
[1739756232336,5.08656257,2677.0,2676.9,0.2770977]
[1739756232812,1.35104257,2677.0,2676.9,0.2770977]
[1739756233002,1.35104257,2677.0,2676.5,3.7362]
[1739756233204,0.54903506,2677.0,2676.5,3.7362]
[1739756233803,0.54903506,2677.0,2676.6,3.73608]
[1739756234332,4.28458506,2677.0,2676.4,3.73624]
[1739756234532,4.28458506,2677.0,2676.5,3.73617]
[1739756234835,0.54903506,2677.0,2676.6,3.736]
[1739756235461,0.54903506,2677.0,2676.6,4.01401704]
[1739756235858,4.28461506,2677.0,2676.6,0.27801704]
[1739756236060,4.28457506,2677.0,2676.6,0.27801704]
[1739756236275,3.73574,2676.9,2676.6,0.27801704]
[1739756236470,0.0979,2676.8,2676.6,0.27801704]
[1739756236664,0.4003355,2676.8,2676.6,0.27801704]
[1739756236841,0.4003355,2676.8,2676.5,0.27801704]
[1739756237344,0.4003355,2676.8,2676.5,4.01410704]
[1739756237668,0.4003355,2676.8,2676.6,3.73608]
[1739756238394,0.4003355,2676.8,2676.7,3.73594]
[1739756238820,0.3024355,2676.8,2676.7,3.73594]
[1739756239021,0.5178512,2677.0,2676.6,3.73606]
[1739756239335,0.30242342,2676.9,2676.4,0.7975]
[1739756239543,0.30242342,2676.9,2676.8,3.7358]
[1739756239927,0.30242342,2676.9,2676.6,3.736]
[1739756240271,0.30242342,2676.9,2676.8,3.7358]
[1739756240427,0.30242342,2676.9,2676.7,3.73581]
[1739756240855,0.30242342,2676.9,2676.7,4.01349605]
[1739756241877,0.30242342,2676.9,2676.7,0.27768605]
[1739756242879,0.30242342,2676.9,2676.6,3.73608]
[1739756243642,0.30242342,2676.9,2676.2,0.7975]
[1739756243883,0.30242342,2676.9,2676.6,3.73602]
[1739756244067,0.30242342,2676.9,2676.7,3.73586]
[1739756244382,0.30242342,2676.9,2676.6,3.73602]
[1739756244581,0.30242342,2676.9,2676.8,3.7358]
[1739756245457,0.30242342,2676.9,2676.8,4.562722]
[1739756246059,0.1479512,2677.0,2676.9,3.73566]
[1739756246254,0.45024785,2677.0,2676.9,3.73566]
[1739756248186,7.85e-06,2677.0,2676.9,8.11416]
[1739756248346,7.27e-06,2677.0,2676.9,9.70398488]
[1739756248541,0.0979,2677.9,2677.8,3.7344]
[1739756248861,0.37871699,2677.9,2677.7,3.73453]
[1739756249058,0.0979,2677.9,2677.7,7.46899]
[1739756249395,0.28081699,2677.8,2677.7,3.73446]
[1739756251244,0.28081699,2677.8,2677.4,3.73488]
[1739756251448,0.0979,2677.7,2677.2,3.73515]
[1739756251663,0.76225371,2677.6,2677.5,3.73482]
[1739756251880,0.37901471,2677.6,2677.3,3.73498]
[1739756252390,0.37901471,2677.6,2677.4,3.73492]
[1739756252892,0.37901471,2677.6,2677.5,3.73482]
[1739756253066,0.28111471,2677.6,2677.5,3.73482]
[1739756253460,0.0979,2677.8,2677.5,3.73482]
[1739756253831,0.0979,2677.8,2677.7,3.73454]
[1739756255790,0.0979,2677.8,2677.6,3.7346]
[1739756255949,0.36898606,2677.8,2677.2,3.73523]
[1739756256149,0.0979,2677.8,2677.5,3.73482]
[1739756256363,0.0979,2677.6,2677.2,3.73516]
[1739756256590,0.0979,2677.6,2677.3,3.73502]
[1739756256791,0.271,2678.0,2677.5,3.73482]
[1739756256974,0.271,2678.0,2677.9,3.73426]
[1739756257165,0.0979,2678.3,2677.8,3.73439]
[1739756257166,3.73372,2678.3,2677.8,3.73439]
[1739756257359,0.0979,2678.1,2677.8,3.73439]
[1739756257891,0.0979,2678.1,2677.7,3.73452]
[1739756258066,0.410376,2678.0,2677.7,7.46897]
[1739756258386,0.410376,2678.0,2677.7,3.73445]
[1739756258586,0.0979,2677.9,2677.7,3.73445]
[1739756258750,0.0979,2677.9,2677.5,3.73475]
[1739756259478,0.0979,2677.9,2677.0,0.8285]
[1739756259657,0.0979,2677.9,2677.6,3.73458]
[1739756260552,0.0979,2678.3,2677.3,0.8285]
[1739756260752,0.3699,2678.3,2678.2,3.73385]
[1739756261161,0.3699,2678.3,2678.0,3.73412]
[1739756261359,0.3699,2678.3,2678.1,3.73395]
[1739756261594,0.27138381,2678.2,2678.1,7.4679]
[1739756261983,0.3699,2678.3,2678.2,3.73385]
[1739756262157,0.3699,2678.3,2678.1,7.4679]
[1739756262357,0.3699,2678.3,2678.1,3.73391]
[1739756262696,0.3699,2678.3,2678.2,3.73385]
[1739756262893,0.3699,2678.3,2678.1,3.73391]
[1739756263266,0.3699,2678.3,2677.8,3.73432]
[1739756263267,0.0979,2678.2,2677.8,3.73432]
[1739756263794,0.0979,2678.2,2677.5,3.7347]
[1739756263795,0.508262,2678.1,2677.3,0.7545]
[1739756264096,0.508262,2678.1,2677.7,3.73442]
[1739756264254,0.508262,2678.1,2677.3,0.7545]
[1739756264456,0.0979,2678.1,2677.7,3.73444]
[1739756264996,0.0979,2678.1,2678.0,3.73412]
[1739756266012,0.272,2678.2,2678.1,3.73399]
[1739756267909,0.272,2678.2,2678.0,3.73412]
[1739756268073,0.272,2678.2,2678.1,3.73399]
[1739756276541,0.54358984,2678.2,2678.1,3.73399]
[1739756280662,0.54358984,2678.2,2678.0,3.73411]
[1739756281252,0.54358984,2678.2,2678.1,3.73399]
[1739756282455,0.54358984,2678.2,2677.7,0.7545]
[1739756282652,0.54358984,2678.2,2678.0,3.73402]
[1739756283157,0.54358984,2678.2,2678.1,3.73399]
[1739756286344,0.54358984,2678.2,2678.0,3.7341]
[1739756287983,0.54358984,2678.2,2677.9,3.73426]
[1739756288496,0.54358984,2678.2,2678.0,3.73408]
[1739756289382,0.54358984,2678.2,2677.9,3.73426]
[1739756289975,0.54358984,2678.2,2677.9,3.7342]
[1739756290178,0.54358984,2678.2,2678.0,3.7341]
[1739756290945,0.27158984,2678.2,2678.1,3.73399]
[1739756291391,0.27,2678.3,2678.1,3.73399]
[1739756291637,0.27155337,2678.2,2678.1,3.73399]
[1739756291943,0.27,2678.3,2678.1,3.73399]
[1739756292233,0.27155337,2678.2,2678.1,3.73399]
[1739756292531,0.27155337,2678.2,2678.0,3.7341]
[1739756292740,0.27,2678.3,2678.0,3.7341]
[1739756292895,0.27155337,2678.1,2678.0,3.7341]
[1739756293094,0.27,2678.3,2678.0,3.7341]
[1739756293307,0.27152302,2678.2,2678.0,3.7341]
[1739756293507,0.27,2678.3,2678.1,3.73399]
[1739756293708,0.27,2678.3,2678.2,3.73385]
[1739756293938,0.005,2678.4,2678.3,3.73371]
[1739756295551,0.005,2678.4,2678.2,3.73376]
[1739756295749,0.005,2678.4,2678.2,7.46753]
[1739756295916,0.005,2678.4,2678.2,3.73376]
[1739756296115,0.005,2678.4,2678.2,7.46752]
[1739756296316,0.005,2678.4,2678.2,3.73376]
[1739756296849,0.005,2678.4,2678.3,3.73371]
[1739756297153,0.005,2678.4,2678.3,4.558347]
[1739756300658,0.005,2678.4,2678.3,4.83673348]
[1739756301163,0.27655945,2678.4,2678.3,4.83673348]
[1739756301369,0.005,2678.4,2678.3,4.83673348]
[1739756301532,0.27655945,2678.4,2678.3,4.83673348]
[1739756301865,0.005,2678.4,2678.3,4.83673348]
[1739756302165,0.27655945,2678.4,2678.3,4.83673348]
[1739756303165,0.005,2678.4,2678.3,4.83673348]
[1739756303379,0.27655945,2678.4,2678.3,4.83673348]
[1739756303671,0.005,2678.4,2678.3,4.83673348]
[1739756304532,0.27655945,2678.4,2678.3,4.83673348]
[1739756305971,0.005,2678.4,2678.3,4.83673348]
[1739756306263,1e-05,2678.4,2678.3,5.60473348]
[1739756307471,1e-05,2678.4,2678.3,8.64206197]
[1739756307762,1e-05,2678.4,2678.3,8.60473348]
[1739756308157,1e-05,2678.4,2678.3,9.15473348]
[1739756314011,1e-05,2678.4,2678.3,5.60473348]
[1739756314193,1e-05,2678.4,2678.3,4.01209648]
[1739756314401,0.2719823,2678.4,2678.3,4.01209648]
[1739756314973,0.2719823,2678.4,2678.3,0.27838648]
[1739756315495,0.2719823,2678.4,2678.0,3.73405]
[1739756315881,0.0979,2678.3,2677.8,3.73431]